fUST/lending_fUST_20240804
["ID","MTS","AMOUNT","RATE_DAILY","PERIOD"]
[334095912,1722766238969,-500.0,0.00015479,2]
[334095914,1722766238978,-500.0,0.00015479,2]
[334095916,1722766238988,-500.0,0.00015479,2]
[334095918,1722766238997,-500.0,0.00015479,2]
[334095920,1722766239007,-500.0,0.00015479,2]
[334095922,1722766239018,-500.0,0.00015479,2]
[334095924,1722766239028,-500.0,0.00015479,2]
[334095926,1722766239039,-500.0,0.00015479,2]
[334095928,1722766239050,-500.0,0.00015479,2]
[334095930,1722766239059,-500.0,0.00015479,2]
[334095932,1722766239068,-500.0,0.00015479,2]
[334095935,1722766239079,-500.0,0.00015479,2]
[334095937,1722766239090,-500.0,0.00015479,2]
[334095939,1722766239101,-500.0,0.00015479,2]
[334095941,1722766239116,-500.0,0.00015479,2]
[334095943,1722766239126,-500.0,0.00015479,2]
[334095945,1722766239135,-500.0,0.00015479,2]
[334095947,1722766239144,-292.14,0.00015479,2]
[334095949,1722766239154,-500.0,0.00015479,2]
[334095951,1722766239163,-500.0,0.00015479,2]
[334095953,1722766239172,-500.0,0.00015479,2]
[334095955,1722766239183,-500.0,0.00015479,2]
[334095957,1722766239193,-500.0,0.00015479,2]
[334095959,1722766239202,-500.0,0.00015479,2]
[334095961,1722766239213,-500.0,0.00015479,2]
[334095963,1722766239225,-500.0,0.00015479,2]
[334095965,1722766239236,-500.0,0.00015479,2]
[334095967,1722766239247,-500.0,0.00015479,2]
[334095969,1722766239256,-500.0,0.00015479,2]
[334095971,1722766239266,-500.0,0.00015479,2]
[334095973,1722766239275,-841.89,0.00015479,2]
[334095975,1722766239285,-500.0,0.00015479,2]
[334095977,1722766239294,-500.0,0.00015479,2]
[334095979,1722766239304,-500.0,0.00015479,2]
[334095981,1722766239313,-500.0,0.00015479,2]
[334095983,1722766239323,-500.0,0.00015479,2]
[334095985,1722766239333,-500.0,0.00015479,2]
[334095987,1722766239343,-500.0,0.00015479,2]
[334095990,1722766239355,-500.0,0.00015479,2]
[334095993,1722766239365,-500.0,0.00015479,2]
[334095996,1722766239375,-500.0,0.00015479,2]
[334095999,1722766239385,-500.0,0.00015479,2]
[334096002,1722766239395,-500.0,0.00015479,2]
[334096004,1722766239405,-1320.9,0.00015479,2]
[334096006,1722766239415,-530.1,0.00015479,2]
[334096008,1722766239427,-500.0,0.00015479,2]
[334096010,1722766239438,-500.0,0.00015479,2]
[334096026,1722766239581,-500.0,0.00015479,2]
[334096028,1722766239591,-500.0,0.0001548,2]
[334096030,1722766239600,-500.0,0.0001548,2]
[334096032,1722766239612,-500.0,0.0001548,2]
[334096034,1722766239624,-500.0,0.0001548,2]
[334096036,1722766239635,-500.0,0.0001548,2]
[334096038,1722766239645,-500.0,0.0001548,2]
[334096040,1722766239656,-500.0,0.0001548,2]
[334096043,1722766239667,-500.0,0.0001548,2]
[334096044,1722766239681,-500.0,0.0001548,2]
[334096046,1722766239690,-500.0,0.0001548,2]
[334096048,1722766239699,-500.0,0.0001548,2]
[334096051,1722766239711,-558.50030875,0.0001548,2]
[334096053,1722766239720,-845.16,0.0001548,2]
[334096055,1722766239731,-500.0,0.0001548,2]
[334096057,1722766239740,-500.0,0.0001548,2]
[334096059,1722766239751,-500.0,0.0001548,2]
[334096061,1722766239762,-500.0,0.0001548,2]
[334096062,1722766239771,-500.0,0.0001548,2]
[334096064,1722766239780,-500.0,0.0001548,2]
[334096066,1722766239790,-500.0,0.0001548,2]
[334096068,1722766239799,-500.0,0.0001548,2]
[334096070,1722766239809,-1763.83,0.0001548,2]
[334096072,1722766239818,-500.0,0.0001548,2]
[334096074,1722766239827,-748.77,0.0001548,2]
[334096076,1722766239837,-500.0,0.0001548,2]
[334096078,1722766239847,-500.0,0.00015481,2]
[334096080,1722766239862,-500.0,0.00015481,2]
[334096082,1722766239872,-500.0,0.00015481,2]
[334096084,1722766239881,-500.0,0.00015481,2]
[334096086,1722766239890,-318.18,0.00015481,2]
[334096088,1722766239900,-506.90581742,0.00015481,2]
[334096090,1722766239910,-545.45,0.00015481,2]
[334096092,1722766239919,-599.15,0.00015481,2]
[334096094,1722766239928,-500.0,0.00015481,2]
[334096096,1722766239937,-500.0,0.00015481,2]
[334096098,1722766239947,-500.0,0.00015481,2]
[334096100,1722766239956,-500.0,0.00015481,2]
[334096102,1722766239967,-500.0,0.00015481,2]
[334096104,1722766239977,-500.0,0.00015481,2]
[334096106,1722766239986,-500.0,0.00015481,2]
[334096108,1722766239996,-500.0,0.00015481,2]
[334096110,1722766240008,-500.0,0.00015481,2]
[334096113,1722766240019,-500.0,0.00015481,2]
[334096115,1722766240031,-500.0,0.00015481,2]
[334096117,1722766240041,-500.0,0.00015481,2]
[334096119,1722766240051,-500.0,0.00015481,2]
[334096121,1722766240061,-500.37493868,0.00015481,2]
[334096123,1722766240071,-297.97492964,0.00015481,2]
[334096125,1722766240081,-500.0,0.00015481,2]
[334096127,1722766240091,-500.0,0.00015481,2]
[334096129,1722766240103,-508.61002176,0.00015481,2]
[334096167,1722766240453,-3.89880143,0.00015481,2]
[334096169,1722766240463,-500.0,0.00015481,2]
[334096171,1722766240473,-505.5621124,0.00015481,2]
[334096173,1722766240483,-500.0,0.00015481,2]
[334096175,1722766240492,-500.0,0.00015481,2]
[334096177,1722766240502,-500.0,0.00015481,2]
[334096179,1722766240513,-280.5686654,0.00015598,2]
[334096182,1722766240525,-349.32450666,0.00015688,2]
[334096184,1722766240539,-150.67549334,0.00015688,2]
[334096186,1722766240552,-211.68444041,0.00015688,2]
[334096188,1722766240563,-1458.98,0.00015688,2]
[334096191,1722766240575,-148.70120292,0.00015688,2]
[334096705,1722766246567,-283.49820542,0.0001548,2]
[334100173,1722767238153,-249.52390451,0.0001,2]
[334100174,1722767238175,-451.953304,0.00014247,2]
[334100175,1722767238200,-160.444131,0.00014565,2]
[334100176,1722767238221,-200.0,0.00014795,2]
[334100177,1722767238243,-15.60459111,0.00015,2]
[334100179,1722767243105,-240.91,0.00010959,2]
[334100180,1722767243127,-1360.45387983,0.00015,2]
[334100190,1722767350157,-200.76,0.00010959,2]
[334100191,1722767350180,-167.3,0.00010959,2]
[334100192,1722767350202,-836.53,0.00010959,2]
[334100239,1722767438178,-182.760859,0.00014247,2]
[334100240,1722767438190,-200.0,0.00014795,2]
[334100241,1722767438201,-625.05952161,0.00015,2]
[334100242,1722767438210,-160.444131,0.00015324,2]
[334100243,1722767438221,-500.0,0.00015479,2]
[334100244,1722767438231,-500.0,0.00015479,2]
[334100245,1722767438243,-500.0,0.00015479,2]
[334100246,1722767438253,-394.1941235,0.00015479,2]
[334100247,1722767439406,-105.8058765,0.00015479,2]
[334100248,1722767439416,-500.0,0.00015479,2]
[334100250,1722767439425,-500.0,0.00015479,2]
[334100251,1722767439434,-500.0,0.00015479,2]
[334100252,1722767439443,-500.0,0.00015479,2]
[334100253,1722767439455,-500.0,0.00015479,2]
[334100254,1722767439465,-304.18549626,0.00015607,2]
[334100255,1722767439475,-500.0,0.00015696,2]
[334100256,1722767439484,-500.0,0.00015697,2]
[334100257,1722767439493,-201.12704577,0.00015697,2]
[334100258,1722767439502,-500.0,0.00015697,2]
[334100259,1722767439511,-500.0,0.00015697,2]
[334100260,1722767439521,-500.0,0.00015697,2]
[334100261,1722767439530,-500.0,0.00015697,2]
[334100262,1722767439540,-500.0,0.00015697,2]
[334100263,1722767439549,-500.0,0.00015697,2]
[334100264,1722767439558,-426.72942369,0.00015697,2]
[334100270,1722767440504,-73.27057631,0.00015697,2]
[334100271,1722767440514,-500.0,0.00015697,2]
[334100272,1722767440523,-500.0,0.00015697,2]
[334100273,1722767440531,-500.0,0.00015697,2]
[334100274,1722767440540,-500.0,0.00015697,2]
[334100275,1722767440549,-500.0,0.00015697,2]
[334100276,1722767440558,-351.29879708,0.00015697,2]
[334100277,1722767440567,-500.0,0.00015697,2]
[334100278,1722767440576,-500.0,0.00015697,2]
[334100279,1722767440585,-500.0,0.00015697,2]
[334100280,1722767440594,-500.0,0.00015697,2]
[334100281,1722767440603,-672.68,0.00015697,2]
[334100282,1722767440612,-500.0,0.00015697,2]
[334100283,1722767440621,-238.01690661,0.00015697,2]
[334100300,1722767446387,-261.98309339,0.00015697,2]
[334100301,1722767446398,-500.0,0.00015697,2]
[334100303,1722767446407,-809.94,0.00015697,2]
[334100304,1722767446417,-500.0,0.00015697,2]
[334100306,1722767446426,-500.0,0.00015697,2]
[334100307,1722767446435,-500.0,0.00015697,2]
[334100308,1722767446446,-500.0,0.00015697,2]
[334100309,1722767446457,-452.03582169,0.00015697,2]
[334100310,1722767446468,-717.23,0.00015697,2]
[334100311,1722767446478,-500.0,0.00015697,2]
[334100312,1722767446489,-500.0,0.00015697,2]
[334100313,1722767446502,-806.81,0.00015697,2]
[334100314,1722767446513,-500.0,0.00015697,2]
[334100315,1722767446525,-500.0,0.00015697,2]
[334100316,1722767446534,-438.25,0.00015697,2]
[334100317,1722767446545,-500.0,0.00015697,2]
[334100318,1722767446555,-500.0,0.00015697,2]
[334100319,1722767446565,-500.0,0.00015697,2]
[334100320,1722767446574,-367.44953157,0.00015697,2]
[334100321,1722767446583,-500.0,0.00015697,2]
[334100322,1722767446593,-500.0,0.00015697,2]
[334100323,1722767446602,-1265.87,0.00015697,2]
[334100324,1722767446611,-508.01,0.00015697,2]
[334100325,1722767446620,-1690.34,0.00015697,2]
[334100326,1722767446630,-217.95699651,0.00015697,2]
[334100327,1722767446639,-62.41083126,0.00015697,2]
[334100328,1722767446653,-437.58916874,0.00015697,2]
[334100329,1722767446663,-62.41083126,0.00015697,2]
[334100333,1722767925076,154.72922386,9.999e-05,2]
[334100334,1722768013360,9657.89318545,9.999e-05,2]
[334100336,1722768041851,2030.65796342,9.999e-05,2]
[334100337,1722768050815,7391.10195522,9.999e-05,2]
[334100339,1722768091388,156.52929486,9.999e-05,2]
[334100346,1722768407616,942.28494783,9.999e-05,2]
[334100348,1722768431284,-164.11,0.00010959,2]
[334100349,1722768431307,-1537.0026143,0.00014222,2]
[334100350,1722768442156,-238.71301869,0.00014222,2]
[334100351,1722768448101,-1224.28436701,0.00014222,2]
[334100352,1722768448123,-169.3475293,0.00014247,2]
[334100361,1722768469865,188.16956636,9.999e-05,2]
[334100375,1722768558105,-816.16582707,0.0001,2]
[334100376,1722768558133,-230.79611398,0.000137,2]
[334101056,1722768638364,-260.0081087,0.00014247,2]
[334101058,1722768638375,-162.609117,0.00014247,2]
[334101060,1722768638385,-661.848542,0.00014255,2]
[334101062,1722768638398,-629.609521,0.00014334,2]
[334101064,1722768638409,-157.521555,0.0001438,2]
[334101066,1722768638419,-157.521555,0.00014754,2]
[334101068,1722768638430,-200.0,0.00014795,2]
[334101070,1722768638441,-492.40339763,0.00015,2]
[334101072,1722768638453,-157.521555,0.00015129,2]
[334101073,1722768638462,-259.9582785,0.00015252,2]
[334101076,1722768638475,-6354.68917356,0.00015443,2]
[334101078,1722768638485,-621.83558254,0.00015589,2]
[334101079,1722768638495,-621.83558253,0.00015594,2]
[334101081,1722768638504,-500.0,0.00015596,2]
[334101083,1722768638513,-500.0,0.00015596,2]
[334101085,1722768638523,-500.0,0.00015596,2]
[334101087,1722768638533,-500.0,0.00015596,2]
[334101089,1722768638543,-248.46766945,0.00015596,2]
[334101091,1722768638552,-500.0,0.00015596,2]
[334101093,1722768638561,-500.0,0.00015596,2]
[334101095,1722768638570,-500.0,0.00015596,2]
[334101097,1722768638580,-500.0,0.00015596,2]
[334101099,1722768638591,-588.26472967,0.00015596,2]
[334101101,1722768638601,-500.0,0.00015596,2]
[334101102,1722768638611,-500.0,0.00015596,2]
[334101104,1722768638621,-500.0,0.00015596,2]
[334101106,1722768638630,-500.0,0.00015596,2]
[334101108,1722768638640,-509.80719218,0.00015596,2]
[334101110,1722768638650,-1747.32629866,0.00015596,2]
[334101112,1722768638659,-500.0,0.00015596,2]
[334101114,1722768638669,-6895.6420104,0.00015597,5]
[334101116,1722768638678,-37753.21507954,0.00015597,2]
[334101344,1722768640778,-500.0,0.00015596,2]
[334101346,1722768640787,-3257.3553552,0.00015597,2]
[334101348,1722768640799,-14183.90463203,0.00015597,2]
[334101350,1722768640809,-7735.8456509,0.00015598,2]
[334101353,1722768640820,-621.83558253,0.00015599,2]
[334101355,1722768640829,-621.83558253,0.00015603,2]
[334101356,1722768640838,-621.83558253,0.00015608,2]
[334101358,1722768640848,-24797.283008,0.00015675,2]
[334101361,1722768640858,-24797.283008,0.00015677,2]
[334101363,1722768640867,-151.0,0.00015677,2]
[334101365,1722768640877,-244.000601,0.00015677,2]
[334101367,1722768640887,-161.747904,0.00015677,2]
[334101368,1722768640896,-402.428067,0.00015677,2]
[334101370,1722768640906,-402.428067,0.00015677,2]
[334101373,1722768640917,-151.0,0.00015677,2]
[334101375,1722768640926,-151.0,0.00015677,2]
[334101377,1722768640936,-12537.83081275,0.00015679,2]
[334101380,1722768640957,-1530.831975,0.00015679,2]
[334101382,1722768640969,-10728.62022025,0.00015679,2]
[334101384,1722768640981,-151.0,0.00015679,2]
[334101386,1722768640991,-402.428067,0.00015679,2]
[334101388,1722768641002,-402.428067,0.00015679,2]
[334101390,1722768641012,-151.0,0.00015679,2]
[334101392,1722768641022,-500.0,0.00015684,2]
[334101394,1722768641031,-549.38708877,0.00015684,2]
[334101396,1722768641041,-500.0,0.00015684,2]
[334101398,1722768641052,-500.0,0.00015684,2]
[334101400,1722768641062,-500.0,0.00015684,2]
[334101402,1722768641071,-500.0,0.00015685,2]
[334101404,1722768641080,-500.0,0.00015685,2]
[334101406,1722768641091,-500.0,0.00015685,2]
[334101408,1722768641101,-500.0,0.00015685,2]
[334101410,1722768641111,-500.0,0.00015685,2]
[334101413,1722768641122,-500.0,0.00015685,2]
[334101415,1722768641132,-437.13415952,0.00015685,2]
[334101417,1722768641141,-555.73321208,0.00015685,2]
[334101419,1722768641153,-500.0,0.00015685,2]
[334101421,1722768641165,-500.0,0.00015685,2]
[334101423,1722768641176,-500.28546035,0.00015685,2]
[334101425,1722768641185,-501.48471063,0.00015685,2]
[334101427,1722768641195,-500.0,0.00015685,2]
[334101429,1722768641206,-477.48909034,0.00015685,2]
[334101431,1722768641215,-500.0,0.00015685,2]
[334101433,1722768641224,-500.0,0.00015685,2]
[334101435,1722768641233,-500.0,0.00015685,2]
[334101437,1722768641242,-500.0,0.00015685,2]
[334101439,1722768641252,-500.0,0.00015685,2]
[334101441,1722768641262,-524.43275921,0.00015685,2]
[334101443,1722768641273,-500.0,0.00015685,2]
[334101445,1722768641285,-500.0,0.00015685,2]
[334101447,1722768641295,-500.0,0.00015685,2]
[334101449,1722768641306,-508.92556124,0.00015685,2]
[334101451,1722768641317,-500.0,0.00015685,2]
[334101453,1722768641326,-500.0,0.00015685,2]
[334101455,1722768641336,-500.0,0.00015685,2]
[334101457,1722768641345,-500.0,0.00015685,2]
[334101459,1722768641356,-500.0,0.00015685,2]
[334101461,1722768641365,-504.82750399,0.00015685,2]
[334101463,1722768641376,-320.51396772,0.00015685,2]
[334101465,1722768641386,-151.0,0.00015685,2]
[334101467,1722768641399,-151.0,0.00015685,2]
[334101469,1722768641409,-500.0,0.00015685,2]
[334101471,1722768641418,-2000.43,0.00015685,2]
[334101473,1722768641429,-500.0,0.00015685,2]
[334101475,1722768641439,-161.95589257,0.00015685,2]
[334101477,1722768641452,-500.0,0.00015685,2]
[334101479,1722768641462,-500.0,0.00015685,2]
[334101481,1722768641475,-500.0,0.00015685,2]
[334101484,1722768641487,-508.22712239,0.00015685,2]
[334101486,1722768641498,-500.0,0.00015685,2]
[334101488,1722768641508,-500.0,0.00015685,2]
[334101490,1722768641519,-500.0,0.00015685,2]
[334101492,1722768641530,-402.428067,0.00015685,2]
[334101494,1722768641542,-402.428067,0.00015685,2]
[334101496,1722768641551,-500.0,0.00015685,2]
[334101498,1722768641562,-500.0,0.00015685,2]
[334101500,1722768641572,-402.428067,0.00015685,2]
[334101502,1722768641583,-402.428067,0.00015685,2]
[334101504,1722768641594,-500.0,0.00015685,2]
[334101506,1722768641603,-151.0,0.00015685,2]
[334101508,1722768641613,-151.0,0.00015685,2]
[334101510,1722768641624,-500.0,0.00015685,2]
[334101512,1722768641634,-500.0,0.00015685,2]
[334101514,1722768641646,-500.0,0.00015685,2]
[334101517,1722768641657,-500.0,0.00015685,2]
[334101519,1722768641668,-500.0,0.00015685,2]
[334101521,1722768641677,-500.0,0.00015685,2]
[334101523,1722768641687,-500.0,0.00015685,2]
[334101525,1722768641699,-23161.57561998,0.00015685,2]
[334101527,1722768641714,-1635.70738802,0.00015685,2]
[334101529,1722768641723,-36080.29261198,0.00015686,2]
[334101693,1722768643534,-500.0,0.00015596,2]
[334101695,1722768643544,-6028.5135588,0.00015686,2]
[334101698,1722768643558,-12760.51980751,0.00015686,2]
[334101964,1722768646659,-500.0,0.00015596,2]
[334101966,1722768646669,-5011.394515,0.00015686,2]
[334101973,1722768646722,-390.43311382,0.00015686,2]
[334101975,1722768646734,-961.81211323,0.00015686,2]
[334101977,1722768646745,-878.92675256,0.00015686,2]
[334105900,1722768937667,154.74467129,9.999e-05,2]
[334105901,1722768945161,154.74467129,9.999e-05,2]
[334105902,1722769273477,278.19542263,9.999e-05,2]
[334105905,1722769556239,-620.96,0.00010959,2]
[334105906,1722769556264,-394.91628467,0.0001212,2]
[334105907,1722769556289,-314.17792571,0.00014247,2]
[334105911,1722769648229,-118.74889429,0.00014247,2]
[334105912,1722769648256,-148.47038182,0.00014247,2]
[334105913,1722769649087,-14.13873518,0.00014247,2]
[334105914,1722769649109,-442.374758,0.00014306,2]
[334105915,1722769649132,-184.1401341,0.00014597,2]
[334105916,1722769649153,-200.0,0.00014795,2]
[334105917,1722769649174,-347.77955978,0.00015,4]
[334105918,1722769649196,-492.40339763,0.00015,2]
[334105919,1722769649217,-58.81855592,0.00015353,2]
[334105995,1722769834913,-348.2575741,0.00014541,2]
[334105998,1722769834923,-589.96885121,0.00014547,2]
[334106028,1722769838726,-432.85647337,0.00014547,2]
[334106030,1722769839400,-688.22789602,0.00014547,2]
[334106077,1722769841056,-59.978609,0.00014547,2]
[334106078,1722769841079,-169.85172,0.00014634,2]
[334106079,1722769841089,-169.85172,0.00015015,2]
[334106080,1722769841099,-1814.76889739,0.000153,2]
[334106081,1722769841115,-809.96960681,0.000153,2]
[334106082,1722769841130,-27993.49216312,0.000153,2]
[334106083,1722769841140,-214.2448827,0.00015353,2]
[334106084,1722769841150,-169.85172,0.00015397,2]
[334106085,1722769841160,-559.95418022,0.00015495,2]
[334106086,1722769841171,-404.7502085,0.000155,2]
[334106087,1722769841183,-206.9342036,0.000155,2]
[334106088,1722769841193,-559.9541802,0.00015518,2]
[334106089,1722769841202,-559.9541802,0.00015541,2]
[334106090,1722769841212,-559.9541802,0.00015564,2]
[334106091,1722769841222,-14183.90463203,0.00015585,2]
[334106092,1722769841233,-500.0,0.00015585,2]
[334106094,1722769841243,-4922.43,0.00015585,2]
[334106096,1722769841253,-500.0,0.00015585,2]
[334106098,1722769841266,-2018.6,0.00015585,2]
[334106100,1722769841275,-500.0,0.00015585,2]
[334106102,1722769841285,-500.0,0.00015585,2]
[334106103,1722769841295,-500.0,0.00015585,2]
[334106104,1722769841305,-500.0,0.00015585,2]
[334106105,1722769841315,-19906.7502286,0.00015585,2]
[334106106,1722769841325,-12320.4837389,0.00015586,2]
[334106107,1722769841345,-7586.2664897,0.00015586,2]
[334106108,1722769841355,-559.9541802,0.00015587,2]
[334106109,1722769841365,-7735.8456509,0.00015588,2]
[334106110,1722769841375,-500.0,0.00015594,2]
[334106111,1722769841384,-500.0,0.00015594,2]
[334106112,1722769841395,-500.0,0.00015594,2]
[334106113,1722769841406,-500.0,0.00015594,2]
[334106114,1722769841419,-500.0,0.00015594,2]
[334106115,1722769841430,-500.0,0.00015594,2]
[334106116,1722769841441,-500.0,0.00015594,2]
[334106117,1722769841451,-500.0,0.00015594,2]
[334106118,1722769841461,-2606.88,0.00015594,2]
[334106119,1722769841471,-1140.56,0.00015594,2]
[334106120,1722769841482,-268.04441203,0.00015594,2]
[334106121,1722769841493,-500.0,0.00015594,2]
[334106122,1722769841504,-500.0,0.00015594,2]
[334106123,1722769841524,-500.0,0.00015594,2]
[334106124,1722769841533,-634.57096213,0.00015594,2]
[334106125,1722769841542,-500.0,0.00015594,2]
[334106126,1722769841553,-500.0,0.00015594,2]
[334106127,1722769841562,-500.0,0.00015595,2]
[334106128,1722769841573,-500.0,0.00015595,2]
[334106129,1722769841584,-500.0,0.00015595,2]
[334106130,1722769841595,-500.0,0.00015595,2]
[334106131,1722769841605,-500.0,0.00015595,2]
[334106132,1722769841615,-500.0,0.00015595,2]
[334106133,1722769841625,-500.0,0.00015595,2]
[334106134,1722769841635,-500.0,0.00015595,2]
[334106135,1722769841645,-500.0,0.00015595,2]
[334106136,1722769841655,-500.0,0.00015595,2]
[334106137,1722769841664,-500.0,0.00015595,2]
[334106138,1722769841674,-500.0,0.00015595,2]
[334106139,1722769841684,-500.0,0.00015595,2]
[334106140,1722769841694,-500.0,0.00015595,2]
[334106141,1722769841704,-500.0,0.00015595,2]
[334106142,1722769841714,-500.0,0.00015595,2]
[334106143,1722769841723,-626.17116997,0.00015595,2]
[334106144,1722769841733,-500.0,0.00015595,2]
[334106145,1722769841742,-500.0,0.00015595,2]
[334106146,1722769841754,-500.0,0.00015595,2]
[334106147,1722769841766,-500.0,0.00015595,2]
[334106148,1722769841778,-500.0,0.00015595,2]
[334106149,1722769841787,-500.0,0.00015595,2]
[334106150,1722769841797,-500.0,0.00015595,2]
[334106151,1722769841808,-500.0,0.00015595,2]
[334106152,1722769841819,-500.0,0.00015595,2]
[334106153,1722769841829,-500.0,0.00015595,2]
[334106154,1722769841838,-267.23981541,0.00015595,2]
[334106155,1722769841849,-500.0,0.00015595,2]
[334106156,1722769841859,-500.0,0.00015595,2]
[334106157,1722769841870,-476.77975175,0.00015595,2]
[334106158,1722769841880,-505.74303105,0.00015595,2]
[334106159,1722769841889,-500.0,0.00015595,2]
[334106160,1722769841899,-500.0,0.00015595,2]
[334106161,1722769841910,-500.0,0.00015595,2]
[334106162,1722769841920,-500.0,0.00015595,2]
[334106163,1722769841930,-512.808624,0.00015595,2]
[334106164,1722769841940,-500.0,0.00015595,2]
[334106165,1722769841950,-500.0,0.00015595,2]
[334106166,1722769841960,-500.0,0.00015595,2]
[334106167,1722769841969,-537.79,0.00015595,2]
[334106168,1722769841979,-500.0,0.00015595,2]
[334106169,1722769841989,-502.94085544,0.00015595,2]
[334106170,1722769841999,-500.0,0.00015595,2]
[334106171,1722769842009,-500.0,0.00015595,2]
[334106172,1722769842020,-500.0,0.00015595,2]
[334106173,1722769842032,-500.0,0.00015595,2]
[334106174,1722769842042,-500.0,0.00015595,2]
[334106175,1722769842051,-500.0,0.00015595,2]
[334106176,1722769842061,-500.0,0.00015595,2]
[334106177,1722769842071,-500.0,0.00015595,2]
[334106178,1722769842080,-500.0,0.00015595,2]
[334106179,1722769842091,-500.0,0.00015595,2]
[334106180,1722769842102,-500.0,0.00015595,2]
[334106181,1722769842111,-500.0,0.00015595,2]
[334106182,1722769842121,-500.0,0.00015595,2]
[334106183,1722769842131,-500.0,0.00015595,2]
[334106184,1722769842141,-500.0,0.00015595,2]
[334106185,1722769842151,-513.62460724,0.00015595,2]
[334106186,1722769842161,-500.0,0.00015595,2]
[334106187,1722769842171,-500.0,0.00015595,2]
[334106188,1722769842181,-500.0,0.00015595,2]
[334106189,1722769842190,-500.0,0.00015595,2]
[334106190,1722769842199,-473.02797815,0.00015595,2]
[334106246,1722769847220,-500.0,0.00015594,2]
[334106247,1722769847230,-26.97202185,0.00015595,2]
[334106248,1722769847239,-92.62797815,0.00015595,2]
[334106253,1722770077926,1000.0,0.00027,120]
[334106254,1722770093129,1003.0,0.00025,60]
[334106255,1722770281399,531.09299059,9.999e-05,2]
[334106256,1722770318109,195.95298196,9.999e-05,2]
[334106257,1722770386049,197.36110812,9.999e-05,2]
[334106258,1722770426505,265.60814995,9.999e-05,2]
[334106261,1722770722394,-240.91,0.00010959,2]
[334106262,1722770734659,249.52390451,0.0001212,2]
[334106265,1722770751315,406.04755903,0.0001212,2]
[334106267,1722770794957,154.89541304,0.0001212,2]
[334106271,1722770828145,-359.064938,0.00014228,2]
[334106272,1722770828170,-483.85023,0.00014247,2]
[334106273,1722770828191,-914.0472374,0.00014395,2]
[334106274,1722770851112,-162.605802,0.00014391,2]
[334106275,1722770851137,-482.79087533,0.00014395,2]
[334106294,1722770889530,200.76,0.00010959,2]
[334106295,1722770900130,167.3,0.00010959,2]
[334106296,1722770910596,836.53,0.00010959,2]
[334106297,1722770911325,542.48310742,9.999e-05,2]
[334106362,1722771031865,-214.2448827,0.00014395,2]
[334106363,1722771031875,-20136.21727727,0.00014395,2]
[334106364,1722771031885,-1091.50397563,0.0001469,2]
[334106365,1722771031897,-227.43235787,0.0001469,2]
[334106366,1722771031908,-269.63517677,0.0001469,2]
[334106367,1722771031918,-162.605802,0.00014766,2]
[334106368,1722771031928,-200.0,0.00014795,2]
[334106369,1722771031938,-294.2025256,0.00014978,2]
[334106370,1722771031948,-336.12056396,0.00014999,2]
[334106371,1722771031958,-150.0,0.00015117,2]
[334106372,1722771031968,-162.605802,0.00015141,2]
[334106373,1722771031980,-367.88690048,0.00015303,2]
[334106374,1722771031992,-664.05347164,0.00015483,2]
[334106375,1722771032001,-664.05347163,0.00015486,2]
[334106376,1722771032011,-664.05347163,0.00015489,2]
[334106377,1722771032022,-664.05347163,0.00015492,2]